[Event "Swedish Championship 2022"]
[Site "Uppsala"]
[Date "2022.07.04"]
[Round "3.1"]
[White "Hillarp Persson, Tiger"]
[Black "Cramling, Pia"]
[Result "1-0"]
[ECO "E32"]
[WhiteElo "2516"]
[BlackElo "2459"]
[Annotator "TA"]
[PlyCount "81"]
[EventDate "2022.07.01"]
[EventType "tourn"]
[EventCountry "SWE"]
[SourceTitle "playchess.com"]
[Source "ChessBase"]
[SourceQuality "1"]
[TimeControl "40/5400+30:1800+30"]

{[%evp 14,81,0,0,17,10,8,0,0,0,27,27,26,25,22,23,30,34,35,37,45,41,41,37,38,30,47,45,48,41,67,72,69,74,100,97,98,75,146,150,149,135,146,124,149,140,125,136,254,249,414,387,418,409,556,539,554,519,616,544,539,532,578,562,658,601,770,747,865,762]} 1. d4 {[%emt 0:00:05]} Nf6 {[%emt 0:00:27]} 2. c4 {[%emt 0:00:07]} e6 {[%emt 0:00:08]} 3. Nc3 {[%emt 0:00:07]} Bb4 {[%emt 0:00:08]} 4. Qc2 {[%emt 0:00:05]} O-O {[%emt 0:00:21]} 5. a3 {[%emt 0:00:07]} Bxc3+ {[%emt 0:00:36]} 6. Qxc3 {[%emt 0:00:07]} b6 {[%emt 0:00:45] 6...d5 injects fresh life into this line.} 7. Bg5 {[%emt 0:00:09]} Bb7 {[%emt 0:00:20]} 8. e3 {[%emt 0:02:27]} d6 {[%emt 0:02:46] E32: Nimzo-Indian: Classical (4 Qc2): 4...0-0.} 9. Ne2 {[%emt 0:00:33]} Nbd7 {[%emt 0:04:31]} 10. Rd1 {[%emt 0:00:19]} h6 {[%emt 0:05:48] The position is equal.} 11. Bh4 {[%emt 0:00:15]} Ne4 {[%emt 0:19:07]} 12. Bxd8 {[%emt 0:02:51]} Nxc3 {[%emt 0:00:03]} 13. Nxc3 {[%emt 0:00:12]} Rfxd8 {[%emt 0:00:09]} 14. f3 {[%emt 0:01:10]} c5 {[%emt 0:03:10]} 15. Kf2 {[%emt 0:03:46]} Nf6 {[%emt 0:08:41]} 16. d5 {[%emt 0:01:55]} exd5 {[%emt 0:09:38]} 17. cxd5 {[%emt 0:02:05] [#]} a6 $146 {[%emt 0:00:07]} ({Predecessor:} 17... Rab8 18. e4 a6 19. a4 Ne8 20. Rb1 a5 21. g4 h5 22. g5 Nc7 23. b3 Na6 {1-0 (35) Ristea,T (2408)-Garcia,H (2102) ICCF email 2020}) 18. a4 {[%emt 0:00:08]} Bc8 {[%emt 0:05:25]} 19. e4 {[%emt 0:14:53]} Bd7 {[%emt 0:04:06][%cal Ob6b5]} 20. Rb1 {[%emt 0:05:28]} Rdb8 {[%emt 0:02:15]} 21. b4 {[%emt 0:10:06][%cal Bb2b4,Bb4c5,Bc5d6][%mdl 32]} b5 {[%emt 0:13:10]} 22. bxc5 {[%emt 0:09:44] [#] And now c6 would win.} b4 {[%emt 0:00:17] White leaves nothing to chance now.} 23. Nd1 {[%emt 0:00:09] Strongly threatening c6.} Bxa4 {[%emt 0:02:22]} 24. cxd6 {[%emt 0:04:20]} Bc2 {[%emt 0:01:29] [#]} 25. Ra1 {[%emt 0:00:15]} a5 {[%emt 0:00:57]} (25... Bxd1 $142 26. Rxd1 Nd7) 26. Ne3 $16 {[%emt 0:00:19]} Bxe4 {[%emt 0:01:47]} 27. fxe4 {[%emt 0:00:10]} Nxe4+ {[%emt 0:00:08]} 28. Kf3 {[%emt 0:00:17]} Nxd6 {[%emt 0:00:43]} 29. Nc4 {[%emt 0:00:41]} Nxc4 {[%emt 0:02:00]} 30. Bxc4 {[%emt 0:00:08]} Rc8 {[%emt 0:01:23]} (30... a4 $16 {was worth a try.}) 31. Bb5 $18 {[%emt 0:01:59] d6 is the strong threat.} Rc3+ $2 {[%emt 0:01:23]} (31... Rc5) 32. Ke4 {[%emt 0:01:50]} b3 {[%emt 0:03:03]} 33. Rhb1 {[%emt 0:08:25]} Kf8 {[%emt 0:00:25]} 34. Kd4 {[%emt 0:01:18] White is clearly winning.} Rc2 {[%emt 0:00:05]} 35. Rxb3 {[%emt 0:00:30]} Rxg2 {[%emt 0:00:10]} 36. Bc6 {[%emt 0:03:22]} Rd8 {[%emt 0:00:10]} 37. h3 {[%emt 0:06:56]} g5 {[%emt 0:01:24]} 38. Rxa5 {[%emt 0:00:56]} h5 {[%emt 0:00:09]} 39. Raa3 {[%emt 0:08:33]} h4 {[%emt 0:07:24]} 40. Kc5 {[%emt 0:02:08]} Kg7 {[%emt 0:02:03]} 41. Kb6 {[%emt 0:31:59] Weighted Error Value: White=0.05 (flawless) /Black=0.29 (precise)} 1-0

[Event "Swedish Championship 2022"]
[Site "Uppsala"]
[Date "2022.07.04"]
[Round "3.2"]
[White "Jogstad, Martin"]
[Black "Hector, Jonny"]
[Result "0-1"]
[ECO "D14"]
[WhiteElo "2384"]
[BlackElo "2441"]
[Annotator "TA"]
[PlyCount "84"]
[EventDate "2022.07.01"]
[EventType "tourn"]
[EventCountry "SWE"]
[SourceTitle "playchess.com"]
[Source "ChessBase"]
[SourceQuality "1"]
[TimeControl "40/5400+30:1800+30"]

{[%evp 15,84,9,9,6,3,0,14,18,26,7,27,29,37,18,41,41,40,0,0,0,0,0,0,0,0,0,0,0,0,0,0,-30,-22,-18,-4,-1,0,-36,-33,-27,-19,-44,-59,-62,-45,-54,-22,-105,-100,-250,-243,-216,-250,-278,-254,-287,-284,-1253,-1203,-1041,-927,-903,-891,-1261,-1241,-3281,-2973,-2784,-2619,-29990,-29991]} 1. d4 {[%emt 0:00:11]} d5 {[%emt 0:00:05]} 2. Nf3 {[%emt 0:00:09]} Nf6 {[%emt 0:00:13]} 3. c4 {[%emt 0:00:13]} c6 {[%emt 0:00:16]} 4. cxd5 {[%emt 0:00:07]} cxd5 {[%emt 0:00:09]} 5. Nc3 {[%emt 0:00:11]} Nc6 {[%emt 0:00:19]} 6. Bf4 {[%emt 0:00:17]} Bf5 {[%emt 0:00:19]} 7. e3 {[%emt 0:00:11]} e6 {[%emt 0:00:04]} 8. Qb3 {[%emt 0:00:15]} Bb4 {[%emt 0:02:56]} 9. Ne5 {[%emt 0:00:20] [#] Strongly threatening Nxc6. is recently more successful than 9.Bb5. D14: Slav Defence: Exchange variation with ...Bf5.} Bxc3+ {[%emt 0:07:19]} 10. bxc3 {[%emt 0:00:18]} Nxe5 {[%emt 0:03:59]} 11. Bxe5 {[%emt 0:00:05] The position is equal.} O-O {[%emt 0:01:30]} 12. f3 {[%emt 0:06:52] [#]} Qa5 $146 {[%emt 0:14:40]} ({Predecessor:} 12... Rc8 13. Be2 Nd7 14. Bd6 Re8 15. O-O Nb6 16. Bc5 Nd7 17. Ba3 Qc7 18. Rac1 Nb6 {1-0 (59) Mastrovasilis,A (2488)-Svane,R (2595) Heraklion 2017}) 13. Be2 {[%emt 0:28:54]} Rfc8 {[%emt 0:01:30]} 14. Rc1 {[%emt 0:03:42]} Nd7 {[%emt 0:09:50]} 15. Bd6 {[%emt 0:02:13]} Nb6 {[%emt 0:05:53]} 16. Bb4 {[%emt 0:05:56] A strong pair of Bishops.} Qa4 {[%emt 0:00:21]} 17. Bc5 {[%emt 0:07:56]} Qc6 {[%emt 0:05:47][%cal Ob6c4]} 18. Bb5 {[%emt 0:04:40] Against Nc4} Qc7 {[%emt 0:00:22][%cal Ob6c4]} 19. O-O {[%emt 0:08:54]} Nc4 {[%emt 0:06:11]} 20. Bxc4 {[%emt 0:00:08]} dxc4 {[%emt 0:00:12]} 21. Qa3 {[%emt 0:00:07]} ({Don't go for} 21. Qxc4 $2 b6 22. e4 Bg6 $19) 21... Bd3 {[%emt 0:01:03]} 22. Rf2 {[%emt 0:00:26]} Rd8 {[%emt 0:03:22]} 23. e4 {[%emt 0:03:20]} f6 {[%emt 0:03:04]} 24. Qb2 {[%emt 0:01:38]} b6 {[%emt 0:07:08][%cal Bb7b6,Bb6b5][%mdl 32]} 25. Ba3 {[%emt 0:00:16]} Rab8 {[%emt 0:01:36]} 26. Re1 {[%emt 0:04:39]} e5 {[%emt 0:02:32]} 27. d5 {[%emt 0:07:36]} b5 {[%emt 0:00:37]} 28. Qc1 {[%emt 0:00:40]} a5 {[%emt 0:00:44][%cal Ba7a5,Ba5b4][%mdl 32]} 29. Bb2 {[%emt 0:01:50]} b4 {[%emt 0:04:33] Black is more active.} 30. Qe3 {[%emt 0:01:46]} f5 {[%emt 0:06:50]} 31. exf5 {[%emt 0:00:46]} (31. cxb4 $11 {keeps the balance.} fxe4 32. fxe4) 31... Rxd5 $17 {[%emt 0:00:14]} 32. cxb4 {[%emt 0:01:19] Loses the game.} (32. g4 $17) 32... c3 $19 {[%emt 0:01:12]} 33. Bc1 {[%emt 0:02:01]} axb4 {[%emt 0:02:04]} 34. Qg5 {[%emt 0:02:18]} Qd8 {[%emt 0:05:11] Inhibits f6. And now ...Qxg5 would win.} 35. Qh5 {[%emt 0:00:04]} Bc4 {[%emt 0:01:24] Threatens to win with ...Rd1.} 36. Bg5 $2 {[%emt 0:00:27]} (36. Qg4 Rd4 37. f4) 36... Rd1 {[%emt 0:01:21]} 37. Rfe2 {[%emt 0:03:13]} Qd3 {[%emt 0:01:07]} 38. Kf2 {[%emt 0:00:41] [#]} Rd2 $1 {[%emt 0:00:15][%mdl 512]} 39. Rxd2 {[%emt 0:02:02]} (39. Bxd2 cxd2) 39... cxd2 {[%emt 0:00:16]} 40. Rd1 {[%emt 0:02:46]} Qe2+ {[%emt 0:00:18]} 41. Kg3 {[%emt 0:30:03]} Qxd1 {[%emt 0:30:21]} 42. Bd8 {[%emt 0:00:57]} Rxd8 {[%emt 0:01:51] Weighted Error Value: White=0.79/Black=0.08 (flawless)} 0-1

[Event "Swedish Championship 2022"]
[Site "Uppsala"]
[Date "2022.07.04"]
[Round "3.3"]
[White "Smith, Axel"]
[Black "Seo, Jung Min"]
[Result "0-1"]
[ECO "A13"]
[WhiteElo "2417"]
[BlackElo "2492"]
[Annotator "TA"]
[PlyCount "70"]
[EventDate "2022.07.01"]
[EventType "tourn"]
[EventCountry "SWE"]
[SourceTitle "playchess.com"]
[Source "ChessBase"]
[SourceQuality "1"]
[TimeControl "40/5400+30:1800+30"]

{[%evp 9,70,25,28,20,20,13,20,6,7,10,12,-10,-4,-5,0,-25,-10,-34,-34,-18,-20,-28,-32,-38,-49,-58,-52,-85,-85,-82,-72,-70,-73,-85,-85,-85,-85,-103,-88,-121,-68,-83,-84,-106,-93,-67,-29,-761,-744,-729,-728,-717,-692,-939,-920,-2054,-1943,-2173,-2042,-6929,-3241,-6303,-3858]} 1. c4 {[%emt 0:00:01]} e6 {[%emt 0:00:05]} 2. Nc3 {[%emt 0:00:15]} Bb4 {[%emt 0:00:02]} 3. e4 {[%emt 0:00:32]} Ne7 {[%emt 0:00:21]} 4. Nf3 {[%emt 0:00:54]} O-O {[%emt 0:09:17]} 5. d4 {[%emt 0:03:11]} d6 {[%emt 0:01:25] [#]} 6. Be2 $146 {[%emt 0:00:47] A13: English Opening: 1...e6.} ({Predecessor:} 6. Bd2 c5 7. a3 Ba5 8. Bd3 e5 9. d5 Ng6 10. g3 Nd7 11. h4 Nf6 12. h5 {½-½ (71) Mareco,S (2653)-Diaz Camallonga,C (2444) Barcelona 2018}) 6... Nbc6 {[%emt 0:02:59]} 7. O-O {[%emt 0:08:04] Black must now prevent Na4.} e5 {[%emt 0:00:10]} 8. dxe5 {[%emt 0:11:35] The position is equal.} Nxe5 {[%emt 0:01:03]} 9. Qc2 {[%emt 0:10:47]} N7c6 {[%emt 0:17:22]} 10. Rd1 {[%emt 0:02:14]} Nxf3+ {[%emt 0:01:25]} 11. Bxf3 {[%emt 0:00:08]} Bc5 {[%emt 0:00:47]} 12. Na4 {[%emt 0:11:01]} Nd4 {[%emt 0:11:12]} 13. Qc3 {[%emt 0:01:43]} (13. Qd3 {looks sharper.} Qf6 14. Bh5 Qh4 15. Be3) 13... Qf6 {[%emt 0:01:51][%cal Od4e2]} (13... Nxf3+ 14. Qxf3 Bb4 15. a3 $14) 14. Nxc5 {[%emt 0:00:14]} dxc5 {[%emt 0:00:04]} 15. Kh1 {[%emt 0:19:51]} Qe5 {[%emt 0:10:11]} 16. Rg1 {[%emt 0:17:50]} Be6 {[%emt 0:01:18]} 17. Be3 {[%emt 0:01:05]} Rfd8 {[%emt 0:01:01]} 18. Bxd4 {[%emt 0:01:07]} Rxd4 {[%emt 0:08:12]} 19. b3 {[%emt 0:00:07]} b6 {[%emt 0:00:40]} 20. Rad1 {[%emt 0:00:54]} Rad8 {[%emt 0:01:34]} 21. Qc2 {[%emt 0:02:42]} a5 {[%emt 0:11:49][%cal Ba7a5,Ba5a4,Ba4a3,Ba3b2][%mdl 32] Black is more active.} 22. Rge1 {[%emt 0:00:18]} g6 {[%emt 0:01:13]} 23. Kg1 {[%emt 0:00:22]} a4 {[%emt 0:00:22]} 24. g3 {[%emt 0:02:48]} R8d6 {[%emt 0:00:38]} (24... Rxd1 $17 25. Rxd1 Rxd1+ 26. Bxd1 Bh3) 25. Kg2 {[%emt 0:01:34]} h5 {[%emt 0:01:06]} 26. h4 {[%emt 0:00:59]} a3 {[%emt 0:03:10] [#] aiming for ...Rxd1.} 27. Rxd4 {[%emt 0:02:03]} Qxd4 {[%emt 0:00:05]} ({But not} 27... cxd4 28. Be2 $11) (27... Rxd4 {seems wilder.} 28. Qc1 Rd3 29. Be2 Rc3) 28. Rc1 $2 {[%emt 0:00:55][%mdl 8192] Loses the game.} (28. e5 $11 Qd2 29. exd6 Qxc2 30. dxc7) 28... Qb2 $19 {[%emt 0:00:20] Black is clearly winning.} 29. Qxb2 {[%emt 0:00:13]} axb2 {[%emt 0:00:04][%mdl 4096] Endgame KRB-KRB} 30. Rb1 {[%emt 0:00:05]} Rd2 {[%emt 0:00:03]} 31. Bd1 {[%emt 0:00:27]} Bg4 {[%emt 0:00:19]} 32. Bxg4 {[%emt 0:00:07]} hxg4 {[%emt 0:00:04]} 33. a3 {[%emt 0:01:17]} Kf8 {[%emt 0:00:10]} 34. b4 {[%emt 0:00:23]} cxb4 {[%emt 0:00:04]} 35. axb4 {[%emt 0:00:34]} Ke7 {[%emt 0:00:03] Weighted Error Value: White=1.01/Black=0.05 (flawless)} 0-1

[Event "Swedish Championship 2022"]
[Site "Uppsala"]
[Date "2022.07.04"]
[Round "3.4"]
[White "Blomqvist, Erik"]
[Black "Westerberg, Jonathan"]
[Result "1/2-1/2"]
[ECO "B04"]
[WhiteElo "2521"]
[BlackElo "2476"]
[Annotator "TA"]
[PlyCount "108"]
[EventDate "2022.07.01"]
[EventType "tourn"]
[EventCountry "SWE"]
[SourceTitle "playchess.com"]
[Source "ChessBase"]
[SourceQuality "1"]
[TimeControl "40/5400+30:1800+30"]

{[%evp 12,108,52,23,53,44,47,44,29,4,57,14,15,13,14,12,17,12,18,20,15,9,9,8,19,-32,37,20,42,47,68,61,68,67,56,74,99,95,95,96,95,91,97,95,117,126,122,113,143,147,151,26,64,77,64,24,14,-87,-79,-97,-104,-98,-63,-52,-34,-39,8,0,0,0,0,0,0,0,0,0,0,0,0,0,0,0,0,0,0,0,0,0,0,0,0,-30,-30,-30,-30,-37,-39,-75,-59]} 1. e4 {[%emt 0:00:06]} Nf6 {[%emt 0:00:51]} 2. e5 {[%emt 0:00:14]} Nd5 {[%emt 0:00:26]} 3. d4 {[%emt 0:00:14]} d6 {[%emt 0:00:36]} 4. Nf3 {[%emt 0:02:49]} dxe5 {[%emt 0:02:24]} 5. Nxe5 {[%emt 0:00:00]} c6 {[%emt 0:02:27]} 6. Bc4 {[%emt 0:00:00]} g6 {[%emt 0:03:32]} 7. Nc3 {[%emt 0:06:30][%cal Bb1c3,Bc3e4,Be4c5,Bc5d3,Bd3f4][%mdl 32]} Be6 {[%emt 0:04:17][%cal Bc8e6,Be6g8,Bg8c4,Bc4d5][%mdl 32] B04: Alekhine's Defence: 4 Nf3.} 8. Ne4 {[%emt 0:14:03]} f6 {[%emt 0:03:06] Against Ng5} 9. Nc5 {[%emt 0:00:39] Threatens to win with Nxc6.} Bg8 {[%emt 0:01:00] [#] White is slightly better.} 10. Nf3 $146 {[%emt 0:00:34]} ({Don't go for} 10. Nxb7 $2 Qc7 11. Nd3 (11. Bxd5 $2 cxd5 12. Nd3 Qxb7 $19) 11... Qxb7 $19) ({Predecessor:} 10. Ned3 b6 11. Ne4 Ne3 12. Bxe3 Bxc4 13. O-O Bg7 14. Re1 O-O 15. Ng3 e5 16. dxe5 fxe5 {0-1 (61) Horvath,V (2002)-Matrahalmi,T (2299) Hungary 2010}) 10... b6 {[%emt 0:00:57]} (10... Nd7 $1 $11) 11. Nd3 {[%emt 0:00:09]} Nc3 {[%emt 0:08:54]} 12. Qd2 {[%emt 0:09:34]} Bxc4 {[%emt 0:05:36]} 13. Qxc3 {[%emt 0:00:07]} Bd5 {[%emt 0:00:44]} 14. Nf4 {[%emt 0:12:17]} Qd7 {[%emt 0:09:22]} 15. O-O {[%emt 0:02:38]} Bg7 {[%emt 0:01:37]} 16. Re1 {[%emt 0:01:19]} O-O {[%emt 0:01:45]} 17. Bd2 {[%emt 0:03:21]} Re8 {[%emt 0:06:01]} 18. Re2 {[%emt 0:02:35]} (18. Re3 $11) 18... Na6 {[%emt 0:02:50]} ({Black should play} 18... Bf7 $1 $15) 19. Rae1 {[%emt 0:08:17]} Nc7 {[%emt 0:00:50]} 20. Nxd5 {[%emt 0:00:18]} cxd5 {[%emt 0:05:59]} 21. Bf4 $36 {[%emt 0:00:57][%mdl 2048] White fights for an advantage.} Nb5 {[%emt 0:08:11]} 22. Qd3 {[%emt 0:01:48]} e6 {[%emt 0:01:01]} 23. h4 {[%emt 0:00:25][%cal Bh2h4,Bh4h5,Bh5h6][%mdl 32]} Nd6 {[%emt 0:00:16]} 24. Bxd6 {[%emt 0:06:00]} Qxd6 {[%emt 0:00:04] [#]} 25. h5 $1 {[%emt 0:00:31]} g5 {[%emt 0:07:25]} 26. Nh2 {[%emt 0:00:30][%cal Oh5h6,Bf3h2,Bh2g4,Bg4e5][%mdl 32]} Qd7 {[%emt 0:04:31]} 27. Ng4 {[%emt 0:01:38]} Qf7 {[%emt 0:00:16]} 28. h6 {[%emt 0:01:06] White is more active.} Bf8 {[%emt 0:00:24]} 29. c4 {[%emt 0:13:01] [#] aiming for cxd5.} Rad8 {[%emt 0:11:35]} 30. cxd5 {[%emt 0:10:52]} Rxd5 {[%emt 0:00:09]} 31. Qc4 {[%emt 0:01:04]} ({Only move:} 31. Qf3 $16 f5 32. Ne5) 31... f5 {[%emt 0:05:20]} 32. Ne5 {[%emt 0:00:04]} Qf6 {[%emt 0:00:38]} (32... Qh5 $2 33. Nf3 b5 34. Qb3 $18) 33. Nf3 {[%emt 0:01:35][%cal Oe2e6] Rxe6! is the strong threat.} (33. Qa4 {looks sharper.} b5 34. Qxa7 g4 35. Rc2) 33... Rd6 {[%emt 0:00:01]} 34. d5 {[%emt 0:01:39]} (34. Qa4 $11 {keeps the balance.} Re7 35. Qa3) 34... exd5 $17 {[%emt 0:00:40]} 35. Qd4 {[%emt 0:00:34]} Rxe2 {[%emt 0:03:32]} 36. Rxe2 {[%emt 0:00:02]} Qxd4 {[%emt 0:00:29]} (36... Qxh6 {keeps more tension.} 37. Qc3 Qh5 38. Re5 g4) 37. Nxd4 {[%emt 0:00:01][%mdl 4096] Endgame KRB-KRN} f4 {[%emt 0:00:33]} 38. Re5 $1 {[%emt 0:00:50]} Kf7 {[%emt 0:00:36]} (38... Rg6 $15) 39. Rf5+ {[%emt 0:00:49]} Ke8 {[%emt 0:00:29]} 40. Rxg5 {[%emt 0:00:16]} Bxh6 {[%emt 0:00:27]} 41. Rh5 {[%emt 0:02:09] Hoping for Nf5.} Bg7 {[%emt 0:13:57]} 42. Nf5 {[%emt 0:00:11]} Rd7 {[%emt 0:00:06]} 43. Nxg7+ {[%emt 0:00:09]} Rxg7 {[%emt 0:00:03]} 44. Rxd5 $11 {[%emt 0:00:26] KR-KR} Rc7 {[%emt 0:00:04]} 45. Rd2 {[%emt 0:04:25]} Rc1+ {[%emt 0:04:02]} 46. Kh2 {[%emt 0:00:05]} h5 {[%emt 0:00:10]} 47. f3 {[%emt 0:02:16]} Ra1 {[%emt 0:02:34]} 48. a3 {[%emt 0:02:06]} Rb1 {[%emt 0:00:02]} 49. b4 {[%emt 0:03:47]} Ra1 {[%emt 0:01:07]} 50. b5 {[%emt 0:06:10]} Rxa3 {[%emt 0:02:30]} 51. Kh3 {[%emt 0:00:23]} Ra5 {[%emt 0:01:22]} 52. Rb2 {[%emt 0:00:34]} Kf7 {[%emt 0:00:09]} 53. Kh4 {[%emt 0:00:12]} Kg6 {[%emt 0:00:13] ( -> ...Ra1)} 54. Rb4 {[%emt 0:00:31]} Kh6 {[%emt 0:00:45] Weighted Error Value: White=0.16 (very precise) /Black=0.11 (very precise)} 1/2-1/2

[Event "Swedish Championship 2022"]
[Site "Uppsala"]
[Date "2022.07.05"]
[Round "4.1"]
[White "Cramling, Pia"]
[Black "Carlsson, Ludvig"]
[Result "1-0"]
[ECO "D30"]
[WhiteElo "2459"]
[BlackElo "2399"]
[Annotator "TA"]
[PlyCount "35"]
[EventDate "2022.07.01"]
[EventType "tourn"]
[EventCountry "SWE"]
[SourceTitle "playchess.com"]
[Source "ChessBase"]
[SourceQuality "1"]
[TimeControl "40/5400+30:1800+30"]

{[%evp 16,35,22,0,10,6,47,41,47,34,96,47,58,50,212,130,127,0,9,7,416,386]} 1. d4 {[%emt 0:01:59]} d5 {[%emt 0:00:15]} 2. c4 {[%emt 0:00:17]} e6 {[%emt 0:00:18]} 3. Nf3 {[%emt 0:00:24]} c6 {[%emt 0:00:34]} 4. Qc2 {[%emt 0:00:45]} dxc4 {[%emt 0:00:23]} 5. Qxc4 {[%emt 0:01:58]} Nf6 {[%emt 0:00:41]} 6. g3 {[%emt 0:05:43]} b5 {[%emt 0:00:44]} 7. Qc2 {[%emt 0:04:32]} Bb7 {[%emt 0:00:22]} 8. Bg2 {[%emt 0:00:11]} Nbd7 {[%emt 0:00:41]} 9. Ne5 $1 {[%emt 0:04:29][%mdl 4] now scores much better than the old 9.0-0.} Nxe5 {[%emt 0:01:58] D30: Queen's Gambit Declined: Systems without Nc3.} 10. dxe5 {[%emt 0:00:04]} Nd7 {[%emt 0:00:15]} 11. O-O {[%emt 0:06:39]} ({But not} 11. Bxc6 $2 Bxc6 12. O-O (12. Qxc6 $2 Rc8 $19) 12... Rc8 $19) 11... Be7 {[%emt 0:14:18] White is slightly better.} 12. Nc3 {[%emt 0:10:03][%cal Bb1c3,Bc3e4,Be4c5,Bc5e6][%mdl 32] [#]} ({Much worse is} 12. Bxc6 Rc8 13. Bxd7+ Qxd7 $17) 12... Qb8 $146 {[%emt 0:04:36]} (12... Rb8 $14) ({Predecessor:} 12... a6 13. Rd1 Qc7 14. Ne4 Nxe5 15. Bf4 f6 16. Bh3 Kf7 17. Bxe5 fxe5 18. Nc5 Bxc5 19. Qxc5 {0-1 (29) Solovyov,V (2290)-Popov,V (2537) St Petersburg 2021}) 13. Rd1 {[%emt 0:08:24]} (13. Ne4 $16) 13... Nxe5 $14 {[%emt 0:12:37]} 14. Ne4 {[%emt 0:03:17]} Nd7 $2 {[%emt 0:04:54]} (14... c5 $14) 15. Be3 {[%emt 0:19:01]} Qc7 {[%emt 0:04:38] [#]} 16. Bc5 {[%emt 0:02:57] 0x0.00207d17af74dp-1022s more active pieces. The black rooks are badly placed.} (16. Bf4 $1 $16 {[%cal Rf4c7]} e5 17. Bg5) 16... Nxc5 {[%emt 0:03:53]} 17. Nxc5 {[%emt 0:00:04]} Bc8 {[%emt 0:00:08][%mdl 8192] [#] Against Rd7} (17... Bxc5 $11 18. Qxc5 Qb6) 18. Nxe6 $1 {[%emt 0:06:54][%mdl 576] Decoy.  Weighted Error Value: White=0.37/Black=1.08} 1-0